Workbook

Sheet 表1-本會員工(含技工、工友、駕駛、約聘僱人員)人數及性別比例
A1: 本會員工(含技工、工友、駕駛、約聘僱人員)人數及性別比例
A2: 表1
A3: 年別 | B3: 總計 | D3: 男 | G3: 女
B4: 人數(人) | C4: 比例(%) | D4: 人數(人) | E4: 比例(%) | F4: 月均加班時數(時) | G4: 人數(人) | H4: 比例(%) | I4: 月均加班時數(時)
A5: 99年 | B5: =SUM(D5+G5) -> 208 | C5: =E5+H5 -> 100% | D5: 125 | E5: =SUM(D5/B5) -> 60.1% | F5: 0.0 | G5: 83 | H5: =SUM(G5/B5) -> 39.9% | I5: 0.0
A6: 100年 | B6: =SUM(D6+G6) -> 196 | C6: =E6+H6 -> 100% | D6: 117 | E6: =SUM(D6/B6) -> 59.7% | F6: 0.0 | G6: 79 | H6: =SUM(G6/B6) -> 40.3% | I6: 0.0
A7: 101年 | B7: 191 | C7: 100% | D7: 114 | E7: 59.7% | F7: 0.0 | G7: 77 | H7: 40.3% | I7: 0.0
A8: 102年 | B8: 172 | C8: 100% | D8: 108 | E8: 62.8% | F8: 0.0 | G8: 64 | H8: 37.2% | I8: 0.0
A9: 103年 | B9: 161 | C9: 100% | D9: 101 | E9: 62.7% | F9: 0.0 | G9: 60 | H9: 37.3% | I9: 0.0
A10: 104年 | B10: 160 | C10: 100% | D10: 100 | E10: =SUM(D10/B10) -> 62.5% | F10: 0.0 | G10: 60 | H10: =SUM(G10/B10) -> 37.5% | I10: 0.0
A11: 105年 | B11: 154 | C11: 100% | D11: 97 | E11: =SUM(D11/B11) -> 63.0% | F11: 14.6 | G11: 57 | H11: =SUM(G11/B11) -> 37.0% | I11: 14.6
A12: 106年 | B12: 157 | C12: =E12+H12 -> 100% | D12: 97 | E12: 61.8% | F12: 15.8 | G12: 60 | H12: 38.2% | I12: 14.7 | P12: `
A13: 107年 | B13: =SUM(D13+G13) -> 159 | C13: 100% | D13: 98 | E13: =SUM(D13/B13) -> 61.6% | F13: 16.6 | G13: 61 | H13: =SUM(G13/B13) -> 38.4% | I13: 16.0
A14: 108年 | B14: =SUM(D14+G14) -> 162 | C14: 100% | D14: 99 | E14: 61.1% | F14: 20.0 | G14: 63 | H14: 38.9% | I14: 16.5
A15: 109年 | B15: =SUM(D15+G15) -> 168 | C15: 100% | D15: 102 | E15: 60.7% | F15: 19.7 | G15: 66 | H15: 39.3% | I15: 15.9
A16: 110年 | B16: =SUM(D16+G16) -> 167 | C16: 100% | D16: 98 | E16: 58.7% | F16: 21.3 | G16: 69 | H16: 41.3% | I16: 14.8
A17: 111年 | B17: 172 | C17: 100% | D17: 103 | E17: 59.9% | F17: 22.8 | G17: 69 | H17: 40.1% | I17: 15.0
A18: 112年 | B18: 163 | C18: 100% | D18: 97 | E18: 59.5% | F18: 20.6 | G18: 66 | H18: 40.5% | I18: 16.0
A19: 113年 | B19: 182 | C19: 100% | D19: 112 | E19: 61.5% | F19: 18.2 | G19: 70 | H19: 38.5% | I19: 16.2
A20: 資料來源：人事室
A21: 備註： 1.性別資料使用：本會員工包含職員、約聘僱、技工、工友、駕駛，其中職員及聘用人員部分係業務承辦之主要人力，須因應本會業務性質進用具工程、土木、水利、經建、法制等專業背景人員，其中工程專業人員以男性居多，至女性人員以經建、法制及行政專業居多，另本會聘用人員以女性居多、技工、工友、駕駛則以男性居多，本會整體男女比例近年穩定維持約6：4之比例。另因應112年公務員加班時數新制，為了解本會不同性別加班情形，爰增加月均加班時數之複分類(105年以前差勤系統無資料，爰未提供)。 2.應用深化：受限於政府人事法制，在相關職缺公告及進用時均不得限制性別，惟本會各類人員之男女比例可做為本會規劃相關委員會委員組成（如人事甄審考績委員會、聘用人員考核委員會）人數及比例之參據。 3.未進行國際性別統計比較原因說明：茲考量其他國家政府組織型態、功能任務迥異，爰未能就與本會業務性質與角色功能完全相同之國外政府機關進行國際比較。
